bitfinex/quotes_BTCUSD_20241009
["timestamp","ask_amount","ask_price","bid_price","bid_amount"]
[1728487557268,0.34825471,62385.0,62384.0,0.005]
[1728487558192,0.34825471,62385.0,62378.0,0.001642]
[1728487558193,0.16031,62379.0,62378.0,0.001642]
[1728487558411,0.16031,62379.0,62378.0,0.006642]
[1728487558412,0.32114764,62379.0,62378.0,0.006642]
[1728487559190,0.4517446,62379.0,62378.0,0.006642]
[1728487559403,0.32114764,62379.0,62378.0,0.006642]
[1728487561407,0.32114764,62379.0,62378.0,0.011642]
[1728487561408,0.16083764,62379.0,62378.0,0.011642]
[1728487561627,0.32614764,62379.0,62378.0,0.011642]
[1728487562598,0.160305,62381.0,62378.0,0.011642]
[1728487562852,0.160289,62387.0,62386.0,0.005]
[1728487563071,0.32112664,62387.0,62386.0,0.01]
[1728487563295,0.16083764,62387.0,62386.0,0.01]
[1728487563515,0.16083764,62387.0,62386.0,0.170292]
[1728487563750,0.005031,62390.0,62383.0,0.320599]
[1728487563751,0.005031,62390.0,62389.0,0.005]
[1728487563996,0.005031,62390.0,62389.0,0.01]
[1728487564253,0.005031,62390.0,62389.0,0.170284]
[1728487564956,0.005031,62390.0,62389.0,0.252284]
[1728487565178,0.005031,62390.0,62389.0,0.25748921]
[1728487565898,0.005031,62390.0,62389.0,0.252284]
[1728487566140,0.006031,62390.0,62389.0,0.254284]
[1728487566369,0.00576476,62390.0,62389.0,0.254284]
[1728487566620,0.00576476,62390.0,62389.0,0.252284]
[1728487566879,0.00576476,62390.0,62389.0,0.254284]
[1728487567129,0.00576476,62390.0,62389.0,0.252284]
[1728487567348,0.00576476,62390.0,62389.0,0.01]
[1728487567589,0.3268844,62390.0,62389.0,0.005]
[1728487567813,0.160284,62389.0,62388.0,0.005]
[1728487568036,0.00576476,62390.0,62389.0,0.01]
[1728487568270,0.05457103,62390.0,62389.0,0.01]
[1728487568498,0.00576476,62390.0,62389.0,0.01]
[1728487568747,0.16604676,62390.0,62389.0,0.01]
[1728487568969,0.3268844,62390.0,62389.0,0.005]
[1728487569206,0.39365758,62390.0,62389.0,0.005]
[1728487569918,0.39365758,62390.0,62378.0,0.001642]
[1728487569919,0.32057,62389.0,62387.0,0.005]
[1728487570148,0.32057,62389.0,62378.0,0.001642]
[1728487570149,0.283284,62389.0,62388.0,0.001]
[1728487570371,0.41102725,62389.0,62388.0,0.001]
[1728487570591,0.73159725,62389.0,62388.0,0.001]
[1728487570845,0.73133046,62389.0,62388.0,0.001]
[1728487571088,0.12371417,62390.0,62389.0,7.99274967]
[1728487571343,0.47573133,62390.0,62389.0,7.99274967]
[1728487571579,0.48360421,62390.0,62389.0,7.99274967]
[1728487571795,0.43475728,62390.0,62389.0,7.99274967]
[1728487572038,0.43375728,62390.0,62389.0,7.99274967]
[1728487572983,0.33375728,62390.0,62389.0,8.99374967]
[1728487573244,0.33675728,62390.0,62389.0,8.99374967]
[1728487573943,0.33675728,62390.0,62389.0,8.99874967]
[1728487574160,0.34175728,62390.0,62389.0,8.99974967]
[1728487574677,0.47210801,62390.0,62389.0,8.99974967]
[1728487574898,0.34175728,62390.0,62389.0,8.99974967]
[1728487575349,0.36687801,62390.0,62389.0,8.99974967]
[1728487575569,0.35900513,62390.0,62389.0,8.99974967]
[1728487576988,0.35900513,62390.0,62389.0,9.99974967]
[1728487577447,0.49587114,62390.0,62389.0,9.99974967]
[1728487577692,0.59587114,62390.0,62389.0,9.99474967]
[1728487577927,0.69072865,62390.0,62389.0,9.99474967]
[1728487578158,0.66733059,62390.0,62389.0,9.99474967]
[1728487578439,0.53046458,62390.0,62389.0,9.99474967]
[1728487578674,0.48200513,62390.0,62389.0,9.99474967]
[1728487578912,0.4568844,62390.0,62389.0,9.99474967]
[1728487579621,0.50534618,62390.0,62389.0,9.99474967]
[1728487580579,0.57686039,62390.0,62389.0,9.99474967]
[1728487580818,0.65920618,62390.0,62389.0,9.99474967]
[1728487582661,0.8430911,62390.0,62389.0,9.99474967]
[1728487583100,0.8380911,62390.0,62389.0,9.99374967]
[1728487583332,0.86021645,62390.0,62389.0,9.99274967]
[1728487583560,0.86021645,62390.0,62389.0,9.99374967]
[1728487583561,0.88241645,62390.0,62389.0,9.99374967]
[1728487584022,0.87741645,62390.0,62389.0,9.99274967]
[1728487584711,0.88741645,62390.0,62389.0,9.99374967]
[1728487584931,0.97937989,62390.0,62389.0,9.99374967]
[1728487585402,0.98937989,62390.0,62389.0,8.99374967]
[1728487585636,1.00337989,62390.0,62389.0,8.99474967]
[1728487585908,1.00347989,62390.0,62389.0,8.87901298]
[1728487586170,2.06114488,62390.0,62389.0,7.3117632]
[1728487586417,2.52455888,62390.0,62389.0,7.2723684]
[1728487586642,2.50682488,62390.0,62389.0,7.1441404]
[1728487586867,2.50682488,62390.0,62389.0,7.1120834]
[1728487587119,2.50682488,62390.0,62389.0,7.0261949]
[1728487587120,2.35993788,62390.0,62389.0,7.0261949]
[1728487587343,2.31749389,62390.0,62389.0,7.0271949]
[1728487587565,2.30340093,62390.0,62389.0,6.8084366]
[1728487587752,2.29340093,62390.0,62389.0,6.8074366]
[1728487588206,2.30740093,62390.0,62389.0,6.77406563]
[1728487588448,2.30740093,62390.0,62389.0,6.62399868]
[1728487588911,0.81440054,62390.0,62389.0,6.62399868]
[1728487589372,0.97624496,62390.0,62389.0,6.62399868]
[1728487590082,0.97624496,62390.0,62389.0,6.62564068]
[1728487590083,0.81440054,62390.0,62389.0,6.62564068]
[1728487590307,0.81522154,62390.0,62389.0,6.62564068]
[1728487590527,0.97602815,62390.0,62389.0,6.60186768]
[1728487590785,0.95286139,62390.0,62389.0,6.60186768]
[1728487591008,0.95180025,62390.0,62389.0,6.60186768]
[1728487592129,0.97480025,62390.0,62389.0,6.60186768]
[1728487592645,0.68175189,62390.0,62389.0,6.60186768]
[1728487592881,0.39203824,62390.0,62389.0,6.60186768]
[1728487593331,0.41716144,62390.0,62389.0,6.60186768]
[1728487593551,0.41716144,62390.0,62389.0,6.60686768]
[1728487593552,0.27344258,62390.0,62389.0,6.60686768]
[1728487593777,0.37126384,62390.0,62389.0,6.60586768]
[1728487593998,0.45402134,62390.0,62389.0,6.60686768]
[1728487594213,0.37126384,62390.0,62389.0,6.60686768]
[1728487594447,0.38526384,62390.0,62389.0,6.60686768]
[1728487594663,0.21098184,62390.0,62389.0,6.60686768]
[1728487594888,0.38526384,62390.0,62389.0,6.60786768]
[1728487595378,0.50947906,62390.0,62389.0,6.60786768]
[1728487595602,0.49547906,62390.0,62389.0,6.60686768]
[1728487595813,0.49347906,62390.0,62389.0,6.60686768]
[1728487596499,0.48147906,62390.0,62389.0,6.60586768]
[1728487597222,0.48747906,62390.0,62389.0,6.60686768]
[1728487597753,0.58334368,62390.0,62389.0,6.60686768]
[1728487598480,0.48309462,62390.0,62389.0,6.60686768]
[1728487598718,0.36326384,62390.0,62389.0,6.60686768]
[1728487598956,0.33814064,62390.0,62389.0,6.60686768]
[1728487600925,0.38625812,62390.0,62389.0,6.60686768]
[1728487601374,0.53544113,62390.0,62389.0,6.60686768]
[1728487601847,0.38633996,62390.0,62389.0,6.60686768]
[1728487603212,0.53016396,62390.0,62389.0,6.60686768]
[1728487603456,0.41146096,62390.0,62389.0,6.60686768]
[1728487604666,0.81030932,62390.0,62389.0,6.60186768]
[1728487605586,0.84901931,62390.0,62389.0,6.56164168]
[1728487605854,0.96611593,62390.0,62389.0,5.74735559]
[1728487606104,2.93966093,62390.0,62389.0,5.58791632]
[1728487606333,2.95366093,62390.0,62389.0,4.79162576]
[1728487606590,0.5,62369.0,62367.0,0.24236353]
[1728487606902,0.53618636,62368.0,62367.0,0.24236353]
[1728487607314,0.53618636,62368.0,62354.0,0.005]
[1728487607315,0.1,62360.0,62354.0,0.005]
[1728487607542,0.260374,62354.0,62353.0,0.24236353]
[1728487607779,0.42121164,62354.0,62353.0,0.21234756]
[1728487607999,0.260382,62351.0,62344.0,0.005]
[1728487608219,0.42121964,62351.0,62344.0,0.005]
[1728487609428,0.42121964,62351.0,62350.0,0.006638]
[1728487609429,0.24566159,62351.0,62350.0,0.006638]
[1728487609687,0.25666159,62351.0,62350.0,0.084938]
[1728487610172,0.24566159,62351.0,62350.0,0.084938]
[1728487610530,0.24866159,62351.0,62350.0,0.084938]
[1728487611021,0.40904359,62351.0,62350.0,0.084938]
[1728487611234,0.40904359,62351.0,62350.0,0.001638]
[1728487611438,0.40904359,62351.0,62350.0,0.006638]
[1728487612054,0.39604359,62351.0,62350.0,0.006638]
[1728487612295,0.39804359,62351.0,62350.0,0.006638]
[1728487612745,0.40104359,62351.0,62350.0,0.006638]
[1728487613187,0.39804359,62351.0,62350.0,0.006638]
[1728487613444,0.40104359,62351.0,62350.0,0.006638]
[1728487613651,0.42618059,62351.0,62350.0,0.006638]
[1728487614082,0.42618059,62351.0,62350.0,0.001638]
[1728487614940,0.35435664,62351.0,62350.0,0.001638]
[1728487618852,0.32077,62350.0,62345.0,0.43600153]
[1728487619089,0.160391,62348.0,62345.0,0.43600153]
[1728487619311,0.008,62351.0,62345.0,0.43600153]
[1728487619312,0.16083764,62347.0,62345.0,0.43600153]
[1728487619551,0.16083764,62347.0,62346.0,0.27584836]
[1728487619792,0.16083764,62347.0,62346.0,0.43624336]
[1728487620009,0.16083764,62347.0,62346.0,0.27584836]
[1728487621828,0.32122964,62347.0,62346.0,0.27684836]
[1728487622038,0.16183764,62347.0,62346.0,0.27684836]
[1728487622267,0.32122964,62347.0,62346.0,0.001]
[1728487622700,0.32222964,62347.0,62346.0,0.001]
[1728487624128,0.32222964,62347.0,62346.0,0.55384836]
[1728487624129,0.16183764,62347.0,62346.0,0.55384836]
[1728487624351,0.16183764,62347.0,62346.0,0.71424336]
[1728487624592,0.16183764,62347.0,62346.0,0.71524336]
[1728487624810,0.16183764,62347.0,62346.0,0.71824336]
[1728487624811,0.16683764,62347.0,62346.0,0.71824336]
[1728487625082,0.16583764,62347.0,62346.0,0.71824336]
[1728487625270,0.16783764,62347.0,62346.0,0.71824336]
[1728487625499,0.16083764,62347.0,62346.0,0.71824336]
[1728487625715,0.16583764,62347.0,62346.0,0.71824336]
[1728487625937,0.16683764,62347.0,62346.0,0.71824336]
[1728487626155,0.16183764,62347.0,62346.0,0.71824336]
[1728487626596,0.16183764,62347.0,62346.0,0.72088536]
[1728487627493,0.16183764,62347.0,62346.0,0.56049036]
[1728487627751,0.16183764,62347.0,62346.0,0.71588536]
[1728487628203,0.16183764,62347.0,62346.0,0.71788536]
[1728487629300,0.16183764,62347.0,62346.0,0.71588536]
[1728487629509,0.16183764,62347.0,62346.0,0.71169304]
[1728487629726,0.21507193,62366.0,62357.0,0.165366]
[1728487629727,0.16035,62364.0,62357.0,0.165366]
[1728487629936,0.20997804,62358.0,62357.0,0.44121436]
[1728487630162,0.16083764,62358.0,62357.0,0.44121436]
[1728487631003,0.16083764,62358.0,62357.0,0.44321436]
[1728487631676,0.16083764,62358.0,62357.0,0.44121436]
[1728487631885,0.16283764,62358.0,62357.0,0.44121436]
[1728487634985,0.16283764,62358.0,62357.0,0.44321436]
[1728487635447,0.16283764,62358.0,62357.0,0.44121436]
[1728487636077,0.16283764,62358.0,62357.0,0.44321436]
[1728487636806,0.002,62358.0,62357.0,0.86862097]
[1728487637036,0.002,62358.0,62357.0,0.87362097]
[1728487637290,0.002,62358.0,62357.0,0.71281436]
[1728487638179,0.0492655,62370.0,62357.0,0.47694836]
[1728487638392,0.24236353,62367.0,62366.0,0.160343]
[1728487638615,0.16083764,62367.0,62366.0,0.165343]
[1728487639096,0.160343,62366.0,62365.0,0.078]
[1728487639329,0.32118064,62366.0,62365.0,0.078]
[1728487639966,0.16083764,62366.0,62365.0,0.238346]
[1728487640204,0.16083764,62366.0,62365.0,0.427946]
[1728487641247,0.16183764,62366.0,62365.0,0.427946]
[1728487641447,0.004,62366.0,62365.0,0.427946]
[1728487641653,0.004,62366.0,62365.0,0.425946]
[1728487642987,0.004,62366.0,62365.0,0.427946]
[1728487643676,0.004,62366.0,62365.0,0.432946]
[1728487646292,0.004,62366.0,62365.0,0.425946]
[1728487646514,0.16483764,62366.0,62365.0,0.2606]
[1728487646767,0.16483764,62366.0,62365.0,0.420946]
[1728487646977,0.004,62366.0,62365.0,0.427946]
[1728487647189,0.004,62366.0,62365.0,0.432946]
[1728487647400,0.004,62366.0,62365.0,0.5107141]
[1728487647608,0.004,62366.0,62365.0,0.432946]
[1728487648079,0.004,62366.0,62365.0,0.420946]
[1728487648308,0.16483764,62366.0,62365.0,0.425946]
[1728487648748,0.16483764,62366.0,62365.0,0.2606]
[1728487648984,0.16483764,62366.0,62365.0,0.420946]
[1728487649215,0.16483764,62366.0,62365.0,0.425946]
[1728487649425,0.16483764,62366.0,62365.0,0.427946]
[1728487649860,0.16483764,62366.0,62359.0,0.18885622]
[1728487650094,0.16083764,62365.0,62360.0,0.24236353]
[1728487650323,0.16083764,62365.0,62361.0,0.160355]
[1728487650555,0.16083764,62365.0,62363.0,0.16035]
[1728487650805,0.24236353,62364.0,62359.0,0.18885622]
[1728487651039,0.160356,62362.0,62359.0,0.18885622]
[1728487651252,0.32151,62366.0,62360.0,0.481076]
[1728487651253,0.16083764,62361.0,62360.0,0.481076]
[1728487651476,0.16083764,62361.0,62360.0,0.160359]
[1728487652647,0.16083764,62361.0,62360.0,0.162359]
[1728487654004,0.000821,62366.0,62365.0,0.436746]
[1728487654237,0.000821,62366.0,62365.0,0.62060222]
[1728487655351,0.003821,62366.0,62365.0,0.62060222]
[1728487655613,0.003321,62366.0,62365.0,0.62060222]
[1728487656269,0.004321,62366.0,62365.0,0.62060222]
[1728487656693,0.004321,62366.0,62365.0,0.74730314]
[1728487656930,0.004321,62366.0,62365.0,0.74530314]
[1728487657166,0.004321,62366.0,62365.0,0.74730314]
[1728487657619,0.004321,62366.0,62365.0,0.62060222]
[1728487658766,0.004321,62366.0,62365.0,0.61560222]
[1728487658995,0.004321,62366.0,62365.0,0.61860222]
[1728487659905,0.004321,62366.0,62365.0,0.62060222]
[1728487661970,0.004321,62366.0,62365.0,0.62053844]
[1728487667726,0.004321,62366.0,62365.0,0.43668222]
[1728487667954,0.004321,62366.0,62365.0,0.62053844]
[1728487669084,0.0039073,62366.0,62365.0,0.62053844]
[1728487672926,0.05246085,62366.0,62365.0,0.62053844]
[1728487675414,0.05175075,62366.0,62365.0,0.62218044]
[1728487675630,0.05167137,62366.0,62365.0,0.62218044]
[1728487675858,0.05249237,62366.0,62365.0,0.62218044]
[1728487676326,0.21333001,62366.0,62365.0,0.001642]
[1728487676547,0.39880121,62366.0,62365.0,0.001642]
[1728487677530,0.39568339,62366.0,62365.0,0.001642]
[1728487678034,0.40768339,62366.0,62365.0,0.001642]
[1728487678514,0.41558526,62366.0,62365.0,0.001642]
[1728487678766,0.51558526,62366.0,62365.0,0.001642]
[1728487678967,0.49045706,62366.0,62365.0,0.001642]
[1728487679377,0.48545706,62366.0,62365.0,0.001642]
[1728487679592,0.50845706,62366.0,62365.0,0.001642]
[1728487679806,0.51645706,62366.0,62365.0,0.001642]
[1728487680553,0.48645706,62366.0,62365.0,0.001642]
[1728487680771,0.49645706,62366.0,62365.0,0.001642]
[1728487681004,0.49566117,62366.0,62365.0,0.001642]
[1728487682028,0.2274163,62366.0,62365.0,0.18053782]
[1728487682254,0.06657866,62366.0,62365.0,0.166988]
[1728487682479,0.06657866,62366.0,62365.0,0.371688]
[1728487682709,0.018821,62366.0,62365.0,0.371688]
[1728487682922,0.018821,62366.0,62365.0,0.373688]
[1728487683768,0.010821,62366.0,62365.0,0.373688]
[1728487683984,0.015821,62366.0,62365.0,0.373688]
[1728487684450,0.005821,62366.0,62365.0,0.373688]
[1728487684825,0.011821,62366.0,62365.0,0.373688]
[1728487685625,0.011821,62366.0,62365.0,0.455388]
[1728487686251,0.011821,62366.0,62365.0,0.45524741]
[1728487687629,0.17265864,62366.0,62365.0,0.24354741]
[1728487688061,0.22112546,62366.0,62365.0,0.24354741]
[1728487688283,0.22112546,62366.0,62365.0,0.42740363]
[1728487689207,0.17265864,62366.0,62365.0,0.42740363]
[1728487689414,0.011821,62366.0,62365.0,0.42740363]
[1728487689624,0.011821,62366.0,62365.0,0.42940363]
[1728487689835,0.011821,62366.0,62365.0,0.43440363]
[1728487691366,0.011821,62366.0,62365.0,0.43940363]
[1728487693551,0.05985011,62366.0,62365.0,0.62310363]
[1728487693769,0.011821,62366.0,62365.0,0.62310363]
[1728487694472,0.07204562,62371.0,62365.0,0.62310363]
[1728487694473,0.04802911,62375.0,62374.0,0.167323]
[1728487694693,0.14585122,62378.0,62375.0,0.16732]
[1728487694694,0.07204562,62376.0,62375.0,0.16732]
[1728487694922,0.23288326,62376.0,62375.0,0.35117622]
[1728487695845,0.62039124,62386.0,62375.0,0.35117622]
[1728487695846,0.14404176,62386.0,62384.0,0.641184]
[1728487696089,0.20928335,62385.0,62384.0,0.562389]
[1728487696590,0.28084441,62385.0,62384.0,0.562389]
[1728487696826,0.28084441,62385.0,62384.0,0.74624522]
[1728487697307,0.28084441,62385.0,62384.0,0.74424522]
[1728487697754,0.16083764,62385.0,62384.0,0.74424522]
[1728487698077,0.16083764,62385.0,62384.0,0.74524522]
[1728487698509,0.28081971,62385.0,62384.0,0.74524522]
[1728487698727,0.17483764,62385.0,62384.0,0.74824522]
[1728487699147,0.17565864,62385.0,62384.0,0.74824522]
[1728487699822,0.18965864,62385.0,62384.0,0.74924522]
[1728487700025,0.18965864,62385.0,62384.0,0.74724522]
[1728487700242,0.17565864,62385.0,62384.0,0.74824522]
[1728487700511,0.29562833,62385.0,62384.0,0.74824522]
[1728487700726,0.30762833,62385.0,62384.0,0.74924522]
[1728487700968,0.34795264,62385.0,62384.0,0.003]
[1728487701187,0.39636019,62385.0,62384.0,0.003]
[1728487701649,0.49636019,62385.0,62384.0,0.003]
[1728487701897,0.65833463,62385.0,62384.0,0.003]
[1728487702113,0.49636019,62385.0,62384.0,0.003]
[1728487702549,0.65832838,62385.0,62384.0,0.003]
[1728487702781,0.65833517,62385.0,62384.0,0.003]
[1728487703437,0.52148584,62385.0,62384.0,0.003]
[1728487703873,0.68346123,62385.0,62384.0,0.003]
[1728487704093,0.68346139,62385.0,62384.0,0.003]
[1728487704375,0.52148584,62385.0,62384.0,0.003]
[1728487706739,0.54448584,62385.0,62384.0,5.003]
[1728487707888,0.54448584,62385.0,62384.0,4.98236]
[1728487708106,0.78070138,62385.0,62384.0,4.98236]
[1728487708732,0.76670138,62385.0,62384.0,4.98236]
[1728487708955,0.50736019,62385.0,62384.0,4.98336]
[1728487709167,0.52136019,62385.0,62384.0,4.98336]
[1728487709653,0.50736019,62385.0,62384.0,4.98236]
[1728487709869,0.49336019,62385.0,62384.0,4.98236]
[1728487710086,0.52136019,62385.0,62384.0,4.98336]
[1728487711338,2.35148019,62385.0,62384.0,4.98336]
[1728487711544,1.97775019,62385.0,62384.0,4.95917]
[1728487711766,1.77775019,62385.0,62384.0,4.943036]
[1728487712003,1.80717904,62385.0,62384.0,4.756456]
[1728487712256,1.85034893,62385.0,62384.0,4.11579775]
[1728487712506,1.85034893,62385.0,62384.0,3.69476323]
[1728487712749,1.83634893,62385.0,62384.0,3.69476323]
[1728487712973,1.91901893,62385.0,62384.0,3.54702786]
[1728487713194,1.85034893,62385.0,62384.0,3.47136174]
[1728487713422,1.85034893,62385.0,62384.0,3.27198092]
[1728487713423,2.08647876,62385.0,62384.0,3.27198092]
[1728487713646,2.02030887,62385.0,62384.0,3.24129092]
[1728487713854,2.02030887,62385.0,62384.0,2.87089281]
[1728487713855,1.99794032,62385.0,62384.0,2.87089281]
[1728487714080,1.78618129,62385.0,62384.0,1.18349638]
[1728487714321,0.760325,62373.0,62372.0,0.16364435]
[1728487714595,0.760325,62373.0,62358.0,0.24236353]
[1728487714596,0.760361,62359.0,62358.0,0.24236353]
[1728487714829,1.31812477,62359.0,62358.0,0.24236353]
[1728487715063,0.265364,62358.0,62357.0,8.60666541]
[1728487715315,5.36377155,62358.0,62357.0,8.54371954]
[1728487715567,5.36377155,62358.0,62357.0,8.41542754]
[1728487715568,5.4293156,62358.0,62357.0,8.41542754]
[1728487715803,5.4293156,62358.0,62357.0,8.39931754]
[1728487716026,5.4523156,62358.0,62357.0,8.38317954]
[1728487716282,5.96634452,62358.0,62357.0,8.36689954]
[1728487716519,5.96634452,62358.0,62357.0,8.15659117]
[1728487716520,6.01092806,62358.0,62357.0,8.15659117]
[1728487716745,6.17820074,62358.0,62357.0,8.15659117]
[1728487716989,6.22278428,62358.0,62357.0,8.14040117]
[1728487717469,6.22278428,62358.0,62357.0,8.01210917]
[1728487717917,6.22278428,62358.0,62357.0,7.98003617]
[1728487718139,6.22278428,62358.0,62357.0,7.96270017]
[1728487718348,6.22278428,62358.0,62357.0,7.90784382]
[1728487718567,6.22278428,62358.0,62357.0,7.81162482]
[1728487719214,6.17820074,62358.0,62357.0,7.81162482]
[1728487719695,2.40670074,62358.0,62357.0,7.81162482]
[1728487719952,7.45670074,62358.0,62357.0,7.81162482]
[1728487721449,7.64441721,62358.0,62357.0,7.68333282]
[1728487721666,7.64441721,62358.0,62357.0,7.65926482]
[1728487721897,7.50080728,62358.0,62357.0,7.62719182]
[1728487722561,4.67913152,62358.0,62357.0,7.62719182]
[1728487722800,1.14521097,62358.0,62357.0,7.62883382]
[1728487723017,1.24187658,62358.0,62357.0,7.62883382]
[1728487723257,1.17035473,62358.0,62357.0,7.62883382]
[1728487723490,0.826758,62358.0,62357.0,7.62883382]
[1728487724377,0.27908073,62358.0,62357.0,7.62883382]
[1728487724590,0.2732529,62358.0,62357.0,7.62883382]
[1728487725281,0.2872529,62358.0,62357.0,7.62883382]
[1728487725509,0.2732529,62358.0,62357.0,7.62883382]
[1728487725736,0.3732529,62358.0,62357.0,7.62883382]
[1728487725958,0.36505181,62358.0,62357.0,7.62883382]
[1728487726206,0.37905181,62358.0,62357.0,7.62883382]
[1728487726672,0.36505181,62358.0,62357.0,7.62883382]
[1728487726891,0.36505181,62358.0,62357.0,7.62383382]
[1728487728233,0.33990805,62358.0,62357.0,7.62383382]
[1728487728471,0.32590805,62358.0,62357.0,7.62383382]
[1728487728679,0.67046605,62358.0,62357.0,7.62383382]
[1728487728928,0.50291605,62358.0,62357.0,7.62383382]
[1728487729142,0.48891605,62358.0,62357.0,7.62383382]
[1728487729798,0.5604091,62358.0,62357.0,7.62383382]
[1728487730039,0.5744091,62358.0,62357.0,7.62383382]
[1728487730271,0.50291605,62358.0,62357.0,7.62383382]
[1728487730488,0.62243143,62358.0,62357.0,7.62383382]
[1728487730908,0.47342343,62358.0,62357.0,7.62383382]
[1728487731132,1.6475838,62358.0,62357.0,7.62383382]
[1728487731385,1.48654434,62358.0,62357.0,7.62383382]
[1728487731625,1.41922027,62358.0,62357.0,7.62383382]
[1728487732066,1.40522027,62358.0,62357.0,7.62383382]
[1728487732281,1.39122027,62358.0,62357.0,7.62383382]
[1728487732505,1.43036281,62358.0,62357.0,7.62383382]
[1728487732784,1.44436281,62358.0,62357.0,7.62383382]
[1728487733241,1.44436281,62358.0,62357.0,7.52761482]
[1728487733472,1.44436281,62358.0,62357.0,7.49554182]
[1728487733708,1.5692469,62358.0,62357.0,7.49554182]
[1728487734007,1.45016207,62358.0,62357.0,7.49554182]
[1728487734423,1.54542086,62358.0,62357.0,7.49554182]
[1728487735111,1.60966186,62358.0,62357.0,7.49554182]
[1728487737539,1.51440307,62358.0,62357.0,7.49554182]
[1728487738242,1.51440307,62358.0,62357.0,7.47932707]
[1728487738959,1.48926053,62358.0,62357.0,7.45523732]
[1728487739242,1.67311675,62358.0,62357.0,7.45523732]
[1728487740179,1.67311675,62358.0,62357.0,7.43243432]
[1728487740673,1.67289854,62358.0,62357.0,7.25598559]
[1728487740904,1.77289854,62358.0,62357.0,7.25598559]
[1728487741149,1.67763975,62358.0,62357.0,7.22990825]
[1728487741390,1.67763975,62358.0,62357.0,7.19783525]
[1728487741634,1.67763975,62358.0,62357.0,7.06954325]
[1728487741873,1.70278795,62358.0,62357.0,7.06954325]
[1728487742127,2.96728795,62358.0,62357.0,6.91464147]
[1728487742366,2.96728795,62358.0,62357.0,6.78737247]
[1728487742367,3.06377795,62358.0,62357.0,6.78737247]
[1728487742605,3.04977795,62358.0,62357.0,6.49476659]
[1728487742849,3.22072583,62358.0,62357.0,6.46376659]
[1728487743069,3.22072583,62358.0,62357.0,6.44769059]
[1728487743070,3.20092657,62358.0,62357.0,6.44769059]
[1728487743300,3.05797869,62358.0,62357.0,6.36993289]
[1728487743520,3.07197869,62358.0,62357.0,6.24164089]
[1728487744200,2.95797869,62358.0,62357.0,6.24164089]
[1728487744423,2.06371469,62358.0,62357.0,6.11334889]
[1728487744677,2.06371469,62358.0,62357.0,2.79032225]
[1728487744678,2.69712713,62358.0,62357.0,2.79032225]
[1728487744917,7.76112713,62358.0,62357.0,1.75753839]
[1728487745145,7.76112713,62358.0,62357.0,1.11476581]
[1728487745369,8.46112713,62358.0,62357.0,0.72921054]
[1728487745616,8.53538279,62358.0,62357.0,0.13647052]
[1728487745840,0.764913,62348.0,62347.0,0.001642]
[1728487746058,6.20765508,62348.0,62347.0,0.001642]
[1728487746270,6.20765508,62348.0,62336.0,0.19949603]
[1728487746271,0.764941,62337.0,62336.0,0.19949603]
[1728487746506,0.764959,62330.0,62329.0,0.12231255]
[1728487746723,0.764959,62330.0,62300.0,0.24236353]
[1728487746724,0.260493,62308.0,62300.0,0.24236353]
[1728487746949,0.30854122,62308.0,62307.0,0.22741691]
[1728487747208,0.30854122,62308.0,62298.0,0.0775]
[1728487747209,0.283503,62304.0,62298.0,0.0775]
[1728487747448,1.59544622,62304.0,62298.0,0.0775]
[1728487747657,1.73328386,62304.0,62298.0,0.0775]
[1728487747892,1.73328386,62304.0,62296.0,0.1889]
[1728487747893,0.33404868,62304.0,62303.0,0.263944]
[1728487748137,0.30888586,62304.0,62303.0,0.263944]
[1728487748403,0.32288586,62304.0,62303.0,0.263944]
[1728487748837,0.32288586,62304.0,62303.0,0.5403673]
[1728487749067,0.27483764,62304.0,62303.0,0.59461613]
[1728487749287,0.17483764,62304.0,62303.0,0.5403673]
[1728487749513,0.18883764,62304.0,62303.0,0.5403673]
[1728487750611,0.320931,62319.0,62303.0,0.5403673]
[1728487750612,0.1,62314.0,62306.0,0.005477]
[1728487750886,0.26083764,62314.0,62311.0,0.0818]
[1728487751339,0.1,62312.0,62311.0,0.0818]
[1728487751554,0.26083764,62312.0,62311.0,0.0818]
[1728487752235,0.42131964,62312.0,62311.0,0.0818]
[1728487752461,0.43431964,62312.0,62311.0,0.0818]
[1728487753121,0.44531964,62312.0,62311.0,0.0818]
[1728487753797,0.28483764,62312.0,62311.0,0.0818]
[1728487754917,0.30999355,62312.0,62311.0,0.0818]
[1728487755343,0.47047555,62312.0,62311.0,0.0818]
[1728487755585,0.30999355,62312.0,62311.0,0.0818]
[1728487756307,0.47047555,62312.0,62311.0,0.0818]
[1728487758332,0.30999355,62312.0,62311.0,0.083442]
[1728487758816,0.28483764,62312.0,62311.0,0.083442]
[1728487759278,0.28483764,62312.0,62311.0,0.264442]
[1728487759279,0.024,62312.0,62311.0,0.264442]
[1728487759546,0.29018116,62322.0,62318.0,0.002]
[1728487759764,0.29018116,62322.0,62320.0,0.2764233]
[1728487759765,0.32129764,62321.0,62320.0,0.2764233]
[1728487759990,0.16083764,62321.0,62320.0,0.2764233]
[1728487760433,0.16083764,62321.0,62320.0,0.5510233]
[1728487761121,0.16983764,62321.0,62320.0,0.5520233]
[1728487761996,0.33029664,62321.0,62320.0,0.5530233]
[1728487762197,0.33629664,62321.0,62320.0,0.5530233]
[1728487763536,0.36145024,62321.0,62320.0,0.5530233]
[1728487764065,0.20099124,62321.0,62320.0,0.5530233]
[1728487764494,0.24880887,62321.0,62320.0,0.5530233]
[1728487765383,0.40926787,62321.0,62320.0,0.5530233]
[1728487765608,0.45761282,62321.0,62320.0,0.5530233]
[1728487766493,0.40979519,62321.0,62320.0,0.5530233]
[1728487766874,0.24933619,62321.0,62320.0,0.5530233]
[1728487767087,0.40979519,62321.0,62320.0,0.5530233]
[1728487767292,0.24933619,62321.0,62320.0,0.5530233]
[1728487768553,0.08849855,62321.0,62320.0,0.5530233]
[1728487768758,0.0401536,62321.0,62320.0,0.5530233]
[1728487768966,0.015,62321.0,62320.0,0.5550233]
[1728487769178,0.04787623,62326.0,62325.0,0.000477]
[1728487769390,0.07172645,62331.0,62329.0,0.000477]
[1728487769596,0.12009291,62330.0,62329.0,0.000477]
[1728487769797,0.04836646,62330.0,62329.0,0.6377383]
[1728487770007,0.04836646,62330.0,62329.0,0.4773003]
[1728487770244,0.04836646,62330.0,62329.0,0.5581003]
[1728487770446,0.16083764,62333.0,62332.0,0.0794]
[1728487770447,0.20870927,62333.0,62332.0,0.0794]
[1728487770662,0.04836356,62333.0,62332.0,0.081877]
[1728487771286,0.04836356,62333.0,62332.0,0.427308]
[1728487771537,0.11954408,62340.0,62330.0,0.325871]
[1728487771538,0.3379988,62342.0,62340.0,0.0814]
[1728487771779,0.04835513,62341.0,62340.0,0.0794]